bitfinex/quotes_ETHUSD_20260207
["timestamp","ask_amount","ask_price","bid_price","bid_amount"]
[1770440117864,0.004,2086.6,2086.1,1.60888666]
[1770440118059,0.004,2086.6,2086.2,0.28073526]
[1770440118284,0.002,2086.7,2086.3,1.60888666]
[1770440119988,0.002,2086.7,2086.4,2.80712285]
[1770440120366,0.006,2086.7,2086.4,2.80712285]
[1770440121087,0.006,2086.7,2086.2,0.28073526]
[1770440121262,0.004,2086.6,2086.2,1.19832458]
[1770440121679,0.004,2086.6,2085.8,6.40318502]
[1770440121877,0.004,2086.6,2085.9,1.19852341]
[1770440123090,0.002,2086.5,2085.9,1.19852341]
[1770440123281,0.002,2086.5,2085.8,1.19857065]
[1770440123478,0.004,2086.4,2085.8,1.19857065]
[1770440124079,0.004,2086.4,2085.8,2.80745731]
[1770440124861,0.004,2086.4,2085.8,1.19857065]
[1770440126085,0.004,2086.4,2085.6,1.19869581]
[1770440126278,0.004,2086.4,2085.7,1.60888666]
[1770440126585,0.004,2086.4,2085.8,1.88964491]
[1770440127372,0.004,2086.4,2085.6,1.19869581]
[1770440127576,0.004,2086.4,2085.6,2.80758247]
[1770440127963,0.004,2086.4,2085.6,1.19869581]
[1770440128163,0.05026328,2086.3,2085.5,0.001]
[1770440128380,1.67531187,2086.4,2085.5,0.001]
[1770440128688,1.67531187,2086.4,2085.5,0.76149349]
[1770440128894,0.05026328,2086.3,2085.5,0.76149349]
[1770440129384,0.05026328,2086.3,2085.5,0.001]
[1770440129385,0.004,2086.2,2085.5,0.001]
[1770440129890,1.67531187,2086.2,2085.5,0.001]
[1770440130092,2.87372038,2086.1,2085.5,0.001]
[1770440130778,0.05026328,2086.0,2085.5,0.001]
[1770440131086,0.8220032,2086.0,2085.5,0.001]
[1770440131273,1.67131187,2085.9,2085.3,0.001]
[1770440131590,1.67431187,2085.9,2085.3,0.001]
[1770440131994,0.05026328,2085.7,2085.3,0.001]
[1770440132288,1.24894847,2085.7,2085.3,0.001]
[1770440132494,0.003,2085.6,2085.3,0.001]
[1770440132796,0.6076339,2085.6,2085.3,0.001]
[1770440133386,2.27594577,2085.6,2085.1,0.001]
[1770440133694,0.05026328,2085.4,2085.1,0.001]
[1770440134071,0.003,2085.3,2085.1,0.001]
[1770440134566,0.003,2085.2,2085.1,0.001]
[1770440135475,4.79450776,2085.8,2085.1,0.001]
[1770440135676,0.05026328,2085.7,2085.5,0.001]
[1770440135876,1.69483355,2085.7,2085.1,0.001]
[1770440136073,0.003,2085.6,2085.1,0.001]
[1770440136399,2.84326608,2085.6,2085.1,0.001]
[1770440136585,0.76883126,2085.5,2085.1,0.001]
[1770440137100,0.003,2085.4,2085.1,0.001]
[1770440140197,0.05026328,2085.6,2085.1,0.001]
[1770440140394,0.003,2085.5,2085.1,0.001]
[1770440145197,0.05026328,2085.3,2085.1,0.001]
[1770440145401,0.003,2085.5,2085.1,0.001]
[1770440145601,0.77180876,2085.5,2085.1,0.001]
[1770440147614,1.19881077,2085.4,2085.3,0.001]
[1770440148284,1.97260473,2085.5,2085.3,0.001]
[1770440148589,1.97260473,2085.5,2085.1,0.001]
[1770440148795,0.05026328,2085.3,2085.1,0.001]
[1770440149202,0.003,2085.3,2085.1,0.001]
[1770440152012,0.05326328,2085.2,2084.8,0.001]
[1770440152212,0.05026328,2085.2,2084.8,0.001]
[1770440152514,1.20198326,2085.1,2084.8,0.001]
[1770440152912,0.60480894,2085.0,2084.8,0.001]
[1770440153214,0.60480894,2085.0,2084.6,0.001]
[1770440153411,0.003,2084.9,2084.6,0.001]
[1770440156221,1.64457027,2084.9,2084.4,0.001]
[1770440156419,0.003,2084.9,2084.4,0.001]
[1770440156595,0.003,2084.9,2084.4,1.80041245]
[1770440156792,0.003,2084.9,2084.4,0.60104277]
[1770440157119,0.002,2085.5,2084.5,1.6643631]
[1770440157319,0.003,2085.4,2084.5,1.6643631]
[1770440158721,0.003,2085.4,2084.6,2.86363394]
[1770440158926,0.003,2085.4,2084.7,0.76607173]
[1770440159218,0.003,2085.4,2084.5,4.79708337]
[1770440159219,0.05026328,2085.3,2084.5,1.19929019]
[1770440159406,1.69183355,2085.3,2084.5,1.19929019]
[1770440159604,0.003,2085.2,2084.5,1.19929019]
[1770440159796,0.05326328,2085.2,2084.5,1.19929019]
[1770440159998,0.003,2085.1,2084.5,1.19929019]
[1770440160211,0.003,2085.1,2084.5,2.02560467]
[1770440161223,0.003,2085.1,2084.7,0.001]
[1770440161809,0.002,2085.2,2084.7,0.001]
[1770440162011,0.003,2085.1,2084.7,0.001]
[1770440162208,0.003,2085.1,2084.7,1.6653631]
[1770440163110,0.003,2085.1,2084.8,1.19915579]
[1770440163614,0.003,2085.1,2084.7,0.001]
[1770440163815,0.003,2085.1,2084.7,1.20020968]
[1770440164417,0.003,2085.1,2084.7,0.001]
[1770440164626,0.003,2085.1,2084.7,1.20018861]
[1770440165336,0.003,2085.1,2084.7,0.60082419]
[1770440165627,0.003,2085.1,2084.7,0.001]
[1770440168328,0.05026328,2085.0,2084.7,0.001]
[1770440168703,0.05326328,2085.1,2084.7,0.001]
[1770440170235,0.05026328,2085.1,2084.7,0.001]
[1770440171120,0.003,2085.0,2084.7,0.001]
[1770440172734,0.97051104,2085.0,2084.7,0.001]
[1770440173938,0.003,2085.0,2084.7,0.001]
[1770440175140,0.002,2084.9,2084.7,0.001]
[1770440176836,0.003,2084.8,2084.7,0.001]
[1770440178520,0.002,2084.9,2084.7,1.57019053]
[1770440178722,0.002,2085.2,2084.7,1.57019053]
[1770440180350,0.002,2085.2,2084.7,0.001]
[1770440180730,0.002,2085.2,2084.7,1.20021283]
[1770440181358,0.002,2085.2,2084.7,0.001]
[1770440181543,0.002,2085.2,2084.7,1.20021236]
[1770440182445,0.002,2085.2,2084.7,0.001]
[1770440183434,1.64678768,2085.2,2084.7,0.001]
[1770440184348,0.002,2085.2,2084.7,1.57019053]
[1770440184651,0.002,2085.2,2084.7,3.04641425]
[1770440185636,0.002,2085.2,2084.7,1.47722372]
[1770440187758,0.002,2085.2,2084.9,0.001]
[1770440187960,0.002,2085.0,2084.9,0.001]
[1770440192439,0.002,2085.4,2084.9,1.57019053]
[1770440193451,0.002,2085.4,2084.9,0.30574143]
[1770440194732,0.002,2085.4,2084.9,1.50479437]
[1770440195829,1.61216636,2085.3,2084.9,0.001]
[1770440196762,0.002,2085.4,2084.9,0.001]
[1770440196935,0.002,2085.4,2084.9,1.6723105]
[1770440198244,0.002,2086.0,2085.3,1.6713105]
[1770440198574,0.002,2086.0,2084.9,0.001]
[1770440198575,0.002,2086.3,2085.5,1.6713105]
[1770440198762,0.002,2086.3,2085.7,1.6713105]
[1770440200646,0.002,2086.3,2085.9,1.6713105]
[1770440200962,0.002,2086.5,2086.3,1.6713105]
[1770440201268,0.002,2086.5,2086.4,2.51574841]
[1770440201637,0.002,2086.7,2086.4,2.51574841]
[1770440203335,0.002,2086.7,2086.5,1.19817876]
[1770440204057,0.002,2086.7,2086.6,1.6713105]
[1770440204237,0.001,2086.7,2086.6,1.6713105]
[1770440204437,0.001,2086.7,2086.6,2.52197472]
[1770440204835,1.55891004,2087.3,2086.6,0.85066422]
[1770440205034,0.05026328,2087.1,2086.4,1.19819522]
[1770440207362,0.002,2087.4,2086.4,1.19819522]
[1770440207363,0.002,2087.4,2086.7,1.6713105]
[1770440208062,0.05026328,2087.3,2086.7,1.6713105]
[1770440208359,1.61216636,2087.3,2086.5,1.19815444]
[1770440208760,0.002,2087.4,2086.5,2.86946494]
[1770440208958,1.61416636,2087.4,2086.6,0.76623101]
[1770440209164,1.61416636,2087.4,2086.5,1.19815444]
[1770440209165,0.05026328,2087.1,2086.5,1.19815444]
[1770440209341,0.05026328,2087.1,2086.3,6.46402557]
[1770440209747,0.05026328,2087.1,2086.3,6.51181792]
[1770440210167,0.05026328,2087.1,2086.3,6.46402557]
[1770440210862,1.56190308,2087.3,2086.3,6.46402557]
[1770440211079,1.56190308,2087.3,2086.4,0.77101115]
[1770440211365,0.05226328,2087.4,2086.5,2.86948926]
[1770440212065,1.61416636,2087.4,2086.5,2.86948926]
[1770440212252,1.61416636,2087.4,2086.5,1.19817876]
[1770440213057,0.002,2086.9,2086.5,1.19817876]
[1770440213856,0.002,2086.9,2086.5,1.87437515]
[1770440214871,0.05026328,2086.8,2086.1,4.79360279]
[1770440215046,1.61216636,2086.8,2086.1,1.19837547]
[1770440215241,1.61216636,2086.8,2086.0,1.19843567]
[1770440215242,1.56190308,2086.7,2086.0,1.19843567]
[1770440215770,0.05026328,2086.5,2085.7,1.19863834]
[1770440215948,0.05026328,2086.5,2085.8,0.76646752]
[1770440216967,0.002,2086.9,2085.9,1.6713105]
[1770440217141,0.002,2086.9,2085.8,0.76646752]
[1770440217142,0.002,2086.9,2086.1,1.6713105]
[1770440217669,0.002,2086.9,2086.3,1.6713105]
[1770440217854,0.002,2086.9,2086.4,0.28696616]
[1770440219850,0.002,2086.9,2086.5,1.19817876]
[1770440220768,0.002,2086.9,2086.4,1.48516331]
[1770440224674,0.002,2086.9,2086.4,1.19819715]
[1770440225179,0.002,2086.9,2086.5,0.001]
[1770440234259,0.002,2086.9,2086.5,1.56215282]
[1770440234682,0.002,2086.9,2086.5,0.001]
[1770440236757,0.002,2086.9,2086.6,1.56115282]
[1770440236982,0.002,2086.9,2086.6,1.83719172]
[1770440237372,0.002,2086.9,2086.6,0.2760389]
[1770440238385,0.002,2086.9,2086.7,1.19806392]
[1770440239194,0.002,2086.9,2086.6,1.47512231]
[1770440245381,0.002,2087.1,2086.6,1.47512231]
[1770440245600,0.004,2087.1,2086.7,0.62687167]
[1770440245781,0.002,2087.1,2086.8,1.56115282]
[1770440246298,0.004,2087.1,2086.7,0.62687167]
[1770440246598,0.004,2087.1,2086.8,1.19800651]
[1770440248294,0.004,2087.1,2086.8,2.75915933]
[1770440249310,0.002,2087.6,2087.1,1.56115282]
[1770440249512,0.002,2087.6,2086.9,6.76128508]
[1770440249709,0.002,2087.6,2087.1,1.56115282]
[1770440250734,0.002,2087.6,2086.8,2.75915933]
[1770440251024,0.002,2087.6,2087.0,1.19789171]
[1770440251434,0.002,2087.1,2087.0,1.19789171]
[1770440251629,0.002,2087.6,2087.0,2.75904453]
[1770440251833,0.002,2087.3,2087.1,0.75506114]
[1770440252498,0.002,2087.3,2086.9,1.19794162]
[1770440253393,0.002,2087.3,2086.8,0.001]
[1770440255532,0.002,2087.3,2086.8,1.56215282]
[1770440257832,0.002,2087.3,2086.9,1.19794911]
[1770440258040,0.002,2087.3,2086.9,2.82273157]
[1770440258204,0.002,2087.3,2087.0,0.7615528]
[1770440260238,0.002,2087.3,2087.1,1.19783431]
[1770440277746,0.002,2087.6,2087.2,1.62478246]
[1770440278556,0.002,2087.6,2087.1,1.19783431]
[1770440278761,1.6073877,2087.6,2087.1,1.19783431]
[1770440278950,1.88787208,2087.6,2087.1,1.19783431]
[1770440280256,1.6053877,2087.5,2087.0,1.19885733]
[1770440281151,1.6053877,2087.5,2087.0,0.001]
[1770440283663,0.28248438,2087.6,2087.0,0.001]
[1770440283964,0.002,2087.6,2087.0,1.62578246]
[1770440285985,0.002,2087.6,2087.1,1.19783431]
[1770440286156,0.002,2087.6,2087.2,0.7614954]
[1770440288867,0.002,2087.6,2087.3,1.19771954]
[1770440289073,0.002,2087.4,2087.3,1.19771954]
[1770440291198,0.002,2087.4,2087.2,0.001]
[1770440293876,1.53813787,2087.4,2087.2,0.001]
[1770440294173,1.81190743,2087.4,2087.2,0.001]
[1770440294485,0.002,2087.4,2087.2,0.001]
[1770440296092,1.53813787,2087.4,2087.0,0.001]
[1770440297289,0.05026328,2087.2,2087.0,0.001]
[1770440298980,1.58640115,2087.2,2087.0,0.001]
[1770440299185,0.27841481,2087.1,2087.0,0.001]
[1770440300280,1.81455268,2087.1,2087.0,0.001]
[1770440301579,0.27841481,2087.1,2087.0,0.001]
[1770440301882,2.73390007,2087.3,2087.2,0.001]
[1770440302107,2.73390007,2087.3,2087.0,0.001]
[1770440302793,1.19970058,2087.4,2087.0,0.001]
[1770440302993,0.002,2087.4,2087.0,0.001]
[1770440304495,1.58840115,2087.4,2087.0,0.001]
[1770440304696,0.27860138,2087.3,2087.0,0.001]
[1770440305986,3.0124634,2087.3,2087.0,0.001]
[1770440306374,1.53613787,2087.2,2087.0,0.001]
[1770440308097,1.47632553,2087.3,2087.0,0.001]
[1770440308469,3.0124634,2087.3,2087.0,0.001]
[1770440308671,0.78555448,2087.2,2087.0,0.001]
[1770440309006,0.002,2087.4,2087.0,1.56975482]
[1770440310303,0.002,2087.4,2087.0,2.76761192]
[1770440310676,0.002,2087.9,2087.3,1.56875482]
[1770440312798,0.002,2087.9,2087.3,2.76647436]
[1770440313001,0.002,2087.9,2087.4,0.75573525]
[1770440313878,0.002,2087.9,2087.4,2.32449007]
[1770440314104,0.002,2087.7,2087.4,2.32449007]
[1770440314602,0.002,2087.9,2087.5,1.56875482]
[1770440314805,0.002,2087.9,2087.7,1.56875482]
[1770440314974,0.002,2087.9,2087.8,0.27663022]
[1770440315683,0.002,2087.9,2087.6,1.19754742]
[1770440315882,0.002,2088.8,2088.0,1.52774443]
[1770440316098,0.006,2088.8,2088.2,1.52774443]
[1770440316309,0.004,2088.7,2088.2,1.52774443]
[1770440316783,0.004,2088.7,2088.3,2.72489043]
[1770440316989,0.004,2088.7,2088.4,0.75135464]
[1770440317185,0.002,2088.8,2088.5,1.52774443]
[1770440317385,0.006,2088.8,2088.5,1.52774443]
[1770440318002,0.002,2088.8,2088.5,1.52774443]
[1770440318810,0.002,2088.8,2088.6,1.19697404]
[1770440319008,0.002,2088.8,2088.7,0.75126147]
[1770440319192,2.68361968,2089.4,2088.7,0.75126147]
[1770440319517,0.004,2089.3,2088.7,0.75126147]
[1770440320014,0.004,2089.2,2088.7,0.75126147]
[1770440320213,1.48710393,2089.4,2088.7,0.75126147]
[1770440320390,0.004,2089.3,2088.7,0.75126147]
[1770440320812,0.004,2089.2,2088.7,0.75126147]
[1770440321131,1.52076592,2090.3,2089.1,1.52774443]
[1770440321298,0.05026328,2090.0,2088.9,1.52774443]
[1770440321488,0.05026328,2089.9,2088.9,1.52774443]
[1770440321908,0.05026328,2089.6,2088.8,1.19685944]
[1770440322287,0.05026328,2089.6,2088.9,1.52774443]
[1770440322523,1.48710393,2089.9,2089.0,0.27246039]
[1770440322810,0.05026328,2089.6,2089.0,0.27246039]
[1770440323195,1.19631385,2089.8,2089.0,1.46916447]
[1770440323392,0.05026328,2089.7,2089.0,1.46916447]
[1770440324016,2.68333682,2089.9,2089.0,1.46916447]
[1770440324213,2.6833385,2089.9,2089.1,0.77839078]
[1770440324403,1.24647177,2090.0,2089.1,2.30613521]
[1770440324993,0.05026328,2090.0,2089.1,2.30613521]
[1770440325310,1.24643635,2090.0,2089.2,2.72437471]
[1770440325512,1.24643635,2090.0,2089.3,0.82892866]
[1770440325689,0.05026328,2090.0,2089.3,0.82892866]
[1770440326017,1.19614302,2090.1,2089.3,0.82892866]
[1770440326231,0.002,2089.7,2089.3,0.82892866]
[1770440326988,0.002,2089.7,2089.4,1.52774443]
[1770440327184,0.002,2089.7,2089.4,1.19651574]
[1770440327791,0.002,2089.7,2089.5,0.68116998]
[1770440328219,0.002,2089.7,2089.6,1.52774443]
[1770440328516,0.002,2089.9,2089.6,1.52774443]
[1770440329322,0.002,2089.9,2089.7,1.19634397]
[1770440330905,0.002,2089.9,2089.5,0.68116998]
[1770440331107,0.002,2089.9,2089.3,2.02546938]
[1770440331311,0.002,2089.9,2089.3,1.19654072]
[1770440331619,0.002,2089.9,2089.2,4.78648128]
[1770440332715,0.002,2089.9,2089.1,0.77839078]
[1770440332911,1.48910393,2089.9,2089.1,1.19668632]
[1770440333416,0.05026328,2089.7,2089.1,1.19668158]
[1770440333622,0.05026328,2089.7,2088.9,1.19680214]
[1770440333920,0.05026328,2089.7,2088.9,2.72454657]
[1770440334129,0.05026328,2089.7,2089.0,2.27891994]
[1770440335201,0.002,2089.9,2089.1,1.52774443]
[1770440335726,0.002,2089.9,2089.2,1.19663028]
[1770440336019,0.002,2089.9,2089.2,2.72437471]
[1770440337317,0.05026328,2089.8,2089.1,1.19664773]
[1770440337495,1.48910393,2089.9,2089.1,2.34880061]
[1770440337694,0.05026328,2089.8,2089.1,2.34880061]
[1770440338519,0.002,2089.9,2089.2,1.52774443]
[1770440339091,0.002,2089.9,2089.1,2.34880061]
[1770440339296,0.60027552,2089.9,2089.2,2.46920614]
[1770440339496,0.002,2089.9,2089.2,2.46920614]
[1770440339800,0.002,2089.9,2089.3,2.72431744]
[1770440340100,0.002,2089.9,2089.4,1.52774443]
[1770440340424,0.002,2089.9,2089.3,1.19757301]
[1770440340620,0.002,2089.7,2089.3,1.19757301]
[1770440340824,0.002,2089.7,2089.3,2.63676238]
[1770440342303,1.81183264,2090.3,2089.3,4.16450681]
[1770440342612,0.05026328,2090.2,2089.4,1.52774443]
[1770440344797,0.05026328,2090.2,2089.3,2.63676238]
[1770440344995,2.17285643,2090.2,2089.4,0.98922606]
[1770440346342,1.45795341,2090.1,2089.4,0.98922606]
[1770440346631,1.45795341,2090.1,2089.3,1.19757301]
[1770440346824,2.65412055,2090.1,2089.3,0.001]
[1770440348222,0.6857525,2090.2,2089.4,1.4462033]
[1770440348430,1.52055232,2090.1,2089.3,0.001]
[1770440349530,2.71670352,2090.1,2089.3,0.001]
[1770440349715,1.47028904,2090.0,2089.3,0.001]
[1770440349910,4.78431537,2090.2,2089.3,0.001]
[1770440349911,1.47028904,2090.2,2089.3,1.4975617]
[1770440351138,2.66634907,2090.2,2089.3,1.4975617]
[1770440351735,0.29910778,2090.1,2089.4,2.69307744]
[1770440352218,0.34937106,2090.1,2089.4,1.19651574]
[1770440352423,1.8196601,2090.1,2089.4,1.19651574]
[1770440352620,1.8196601,2090.1,2089.3,1.1975395]
[1770440352820,1.8196601,2090.1,2089.3,1.19757077]
[1770440353030,1.77186168,2090.0,2089.3,1.19757077]
[1770440353717,1.77186168,2090.0,2089.6,0.001]
[1770440354125,0.002,2089.9,2089.6,0.001]
[1770440357052,1.52055232,2089.8,2089.6,0.001]
[1770440357822,1.52055232,2089.8,2089.4,0.001]
[1770440359734,2.71686579,2089.8,2089.4,0.001]
[1770440360061,0.27188658,2089.7,2089.4,0.001]
[1770440360272,1.47028904,2089.8,2089.4,0.001]
[1770440360566,0.002,2089.9,2089.4,0.001]
[1770440361835,0.002,2089.9,2089.4,1.19751574]
[1770440362951,0.002,2089.9,2089.5,1.4965617]
[1770440363873,0.002,2089.9,2089.5,1.19643262]
[1770440365073,0.002,2089.9,2089.5,1.94453835]
[1770440367076,0.002,2089.9,2089.6,0.001]
[1770440367596,0.002,2089.9,2089.6,1.4975617]
[1770440368181,0.002,2089.9,2089.7,2.69290567]
[1770440370381,1.52055232,2089.8,2089.4,0.001]
[1770440370582,0.002,2089.9,2089.4,1.4975617]
[1770440373362,0.002,2089.9,2089.6,1.4965617]
[1770440373567,0.002,2089.9,2089.7,1.76586372]
[1770440375174,0.32472871,2090.3,2089.7,1.76586372]
[1770440375489,0.08197227,2090.3,2089.8,1.19628672]
[1770440375677,0.08197227,2090.3,2089.7,2.96218672]
[1770440375875,2.72902894,2090.3,2089.7,0.26930202]
[1770440376064,2.72902894,2090.3,2089.4,6.17697431]
[1770440376065,2.03430567,2090.3,2089.4,2.58742193]
[1770440376384,1.45104913,2090.2,2089.4,2.58742193]
[1770440376589,2.03430567,2090.3,2089.5,1.19645635]
[1770440377288,1.45104913,2090.2,2089.4,0.001]
[1770440377480,1.19611501,2090.1,2089.4,0.001]
[1770440377664,2.02813139,2090.1,2089.4,0.73849089]
[1770440378081,2.02813139,2090.1,2089.4,0.001]
[1770440379777,2.02813139,2090.1,2089.6,0.001]
[1770440379959,0.002,2089.7,2089.6,0.001]
[1770440390269,0.08197227,2090.3,2089.6,1.39093254]
[1770440390585,0.08197227,2090.3,2089.7,1.38993254]
[1770440390889,0.08197227,2090.3,2089.8,2.20341423]
[1770440391777,0.08197227,2090.3,2089.8,1.38993254]
[1770440392291,0.08197227,2090.3,2089.9,1.19622948]
[1770440393201,0.002,2090.1,2089.8,2.58719953]
[1770440393374,0.002,2090.1,2089.8,0.001]
[1770440394301,0.002,2090.1,2089.8,1.39093254]
[1770440394503,0.002,2090.1,2089.9,0.25872371]
[1770440394995,0.002,2090.1,2089.6,0.001]
[1770440395190,0.002,2090.1,2089.6,1.19739312]
[1770440395386,0.002,2090.1,2089.6,2.58732566]
[1770440395586,0.002,2090.1,2089.6,1.19739312]
[1770440395904,0.002,2090.1,2089.7,1.38993254]
[1770440396102,0.002,2090.1,2089.8,0.25873257]
[1770440396394,0.002,2090.1,2089.6,2.58732566]
[1770440397395,0.002,2090.1,2089.6,0.001]
[1770440398578,1.45104913,2090.0,2089.6,0.001]
[1770440398999,1.50131241,2090.0,2089.6,0.001]
[1770440399503,1.50131241,2090.0,2089.4,0.001]
[1770440399702,0.82440813,2089.9,2089.4,0.001]
[1770440399911,1.45104913,2089.8,2089.4,0.001]
[1770440400680,1.19634397,2089.7,2089.4,0.001]
[1770440401412,1.19634397,2089.7,2089.0,0.001]
[1770440401413,1.45104913,2089.6,2089.0,0.001]
[1770440401588,1.45104913,2089.6,2088.7,1.19688946]
[1770440401780,1.72081477,2089.5,2088.7,1.19688946]
[1770440401980,1.72081477,2089.5,2088.6,1.19693902]
[1770440402507,2.02067445,2089.9,2088.9,1.38993254]
[1770440402713,1.45104913,2089.8,2088.8,1.19683007]
[1770440403008,0.05026328,2089.6,2088.8,1.19685594]
[1770440403212,1.45104913,2089.5,2088.7,1.19690502]
[1770440403519,1.45104913,2089.5,2088.8,1.19685518]
[1770440403883,1.45104913,2089.7,2088.9,1.19680178]
[1770440404206,2.02063859,2089.9,2089.0,1.38993254]
[1770440404414,2.02063859,2089.9,2089.0,1.43780233]
[1770440404618,2.02063859,2089.9,2089.1,1.19668756]
[1770440404820,0.002,2090.1,2089.2,1.43779775]
[1770440405108,1.19811938,2090.1,2089.2,1.43779775]
[1770440405492,2.69943179,2090.1,2089.1,1.24455277]
[1770440405696,0.74836706,2090.0,2089.1,2.4653585]
[1770440405913,2.14455206,2090.0,2089.1,2.4653585]
[1770440406098,0.74836706,2090.0,2089.2,1.49424232]
[1770440406322,0.74836706,2090.0,2089.2,1.54210753]
[1770440406602,0.74836706,2090.0,2089.4,0.001]
[1770440406801,0.002,2089.9,2089.4,1.49524232]
[1770440407180,0.002,2089.9,2089.4,1.54310294]
[1770440408493,0.002,2089.9,2089.4,1.49524232]
[1770440408722,0.002,2089.9,2089.5,1.19645848]
[1770440409030,0.002,2089.9,2089.6,0.74775525]
[1770440409601,0.002,2089.9,2089.4,1.19747168]
[1770440409883,0.002,2089.9,2089.3,1.19654285]
[1770440410102,0.002,2089.9,2089.4,1.1965085]
[1770440410305,0.002,2089.9,2089.4,0.001]
[1770440412908,0.002,2089.9,2089.1,1.19768756]
[1770440413107,1.73191372,2089.9,2089.2,0.001]
[1770440413312,0.002,2089.9,2089.2,0.001]
[1770440416711,1.46554747,2089.9,2089.2,0.001]
[1770440417421,1.46354747,2089.7,2089.2,0.001]
[1770440418187,1.19640122,2089.6,2089.2,0.001]
[1770440418393,0.26599487,2089.5,2089.2,0.001]
[1770440419220,0.26599487,2089.5,2089.2,0.002]
[1770440420311,1.19637393,2089.7,2089.2,0.002]
[1770440420515,4.7852514,2089.8,2089.2,0.002]
[1770440421222,4.7852514,2089.8,2089.2,0.001]
[1770440421597,4.7852514,2089.8,2089.3,0.001]
[1770440422726,1.19628672,2089.8,2089.3,0.001]
[1770440422913,2.62067531,2089.8,2089.3,0.001]
[1770440423449,1.46354747,2089.7,2089.3,0.001]
[1770440424417,1.46354747,2089.3,2089.0,0.001]
[1770440424618,1.46354747,2089.3,2088.5,0.001]
[1770440424619,1.19668756,2089.1,2088.5,0.001]
[1770440424818,0.05026328,2089.3,2088.5,0.001]
[1770440424819,1.19659909,2089.3,2088.6,0.001]
[1770440425201,1.24686237,2089.3,2088.6,0.001]
[1770440425407,1.19659909,2089.3,2088.6,0.001]
[1770440426409,2.6600962,2089.4,2088.6,0.001]
[1770440426811,8.21032151,2089.2,2088.6,0.001]
[1770440427060,1.46354747,2089.0,2088.6,0.001]
[1770440427213,1.46354747,2089.0,2088.5,0.001]
[1770440427214,1.46354747,2088.9,2088.5,0.001]
[1770440427414,1.46354747,2088.9,2088.5,0.002]
[1770440428937,1.19685944,2088.8,2088.5,0.002]
[1770440429316,1.01019852,2088.8,2088.5,0.002]
[1770440429621,0.72611838,2088.7,2088.5,0.002]
[1770440429818,0.72611838,2088.7,2088.5,0.001]
[1770440430145,0.72611838,2088.7,2088.3,0.001]
[1770440430364,1.46354747,2088.6,2088.4,0.001]
[1770440430519,0.05026328,2088.5,2088.0,0.001]
[1770440431117,1.19708868,2088.4,2088.0,0.001]
[1770440431324,1.19708868,2088.4,2087.8,0.001]
[1770440431325,1.46354747,2088.2,2087.8,0.001]
[1770440431626,1.97893246,2088.3,2087.8,0.001]
[1770440431846,0.05026328,2088.2,2087.8,0.001]
[1770440432232,1.51381075,2088.2,2087.8,0.001]
[1770440433141,1.19720333,2088.2,2087.8,0.001]
[1770440433326,0.65012511,2088.1,2087.8,0.001]
[1770440434759,1.71253245,2088.3,2087.8,0.001]
[1770440436124,0.51538499,2088.3,2087.8,0.001]
[1770440436448,1.71253313,2088.3,2087.8,0.001]
[1770440436645,0.51538499,2088.3,2087.8,0.001]
[1770440436852,8.43379759,2089.1,2087.8,1.49607259]
[1770440436853,1.47862153,2089.1,2087.8,1.49607259]
[1770440437040,1.19674485,2089.0,2087.8,1.49607259]
[1770440437816,2.62508164,2089.1,2088.0,1.49507259]
[1770440438055,0.002,2089.3,2088.1,1.76431738]
[1770440439624,0.002,2089.3,2088.3,1.49507259]
[1770440439833,0.002,2089.3,2088.5,1.49507259]
[1770440440355,0.002,2089.3,2088.4,1.19708868]
[1770440441267,0.05226328,2089.3,2088.4,1.19708868]
[1770440441466,1.48062153,2089.3,2088.2,1.19720144]
[1770440441633,1.47862153,2089.0,2088.1,0.26924479]
[1770440441832,1.19680214,2088.9,2088.0,1.19728791]
[1770440442036,1.42835825,2088.8,2087.8,1.19839843]
[1770440442253,1.42835825,2088.8,2087.8,1.19840377]
[1770440442545,0.05026328,2088.7,2087.8,1.19840111]
[1770440442725,0.05026328,2088.7,2087.9,1.19737254]
[1770440442925,0.31780565,2088.7,2087.8,1.19839588]
[1770440443660,0.26754237,2088.7,2087.9,1.19734711]
[1770440443857,1.19680214,2088.9,2088.1,1.19726066]
[1770440444829,1.1967831,2089.0,2088.1,2.69233325]
[1770440445030,1.1967831,2089.0,2088.2,1.49507259]
[1770440445337,0.002,2088.5,2088.2,1.49507259]
[1770440445660,0.002,2088.5,2088.3,0.26923332]
[1770440445964,0.002,2088.5,2088.1,1.19723672]
[1770440446458,0.002,2088.5,2088.1,1.19723811]
[1770440447168,0.002,2088.5,2088.2,1.19719829]
[1770440447669,0.002,2088.5,2088.1,1.19722444]
[1770440447961,0.002,2088.5,2088.1,1.19726066]
[1770440448135,0.002,2088.5,2088.2,0.74825976]
[1770440449728,0.002,2088.5,2088.2,2.24333235]
[1770440451438,0.002,2088.5,2088.3,1.197146]
[1770440451753,4.78298637,2089.2,2088.3,2.69221859]
[1770440451954,1.19663028,2089.2,2088.3,2.69221859]
[1770440452255,1.19663028,2089.2,2088.4,0.82291387]
[1770440452453,2.67525181,2089.2,2088.4,0.82291387]
[1770440453337,2.62498853,2089.2,2088.4,0.82291387]
[1770440453546,1.19663028,2089.2,2088.5,1.19703136]
[1770440453889,4.83864973,2089.3,2088.6,1.49507259]
[1770440453890,0.002,2089.3,2088.6,1.49507259]
[1770440454032,0.002,2089.3,2088.7,0.2692104]
[1770440454772,0.002,2089.3,2088.7,1.76428299]
[1770440455535,0.002,2089.3,2088.8,1.19685944]
[1770440455731,0.002,2089.3,2088.7,1.4660879]
[1770440455950,0.002,2089.3,2088.8,0.62538934]
[1770440456431,1.43462153,2089.6,2088.8,0.62538934]
[1770440456832,4.78529007,2089.8,2088.8,2.12046193]